bitfinex-derivatives/quotes_BNBF0:USTF0_20250617
["timestamp","ask_amount","ask_price","bid_price","bid_amount"]
[1750185697949,1.03550952,644.15,643.83,1.026]
[1750185698249,1.03550952,644.14,643.83,1.026]
[1750185698448,1.03550952,644.13,643.83,1.026]
[1750185698644,1.03550952,644.12,643.83,1.026]
[1750185698944,1.03550952,644.11,643.83,1.026]
[1750185699246,1.03550952,644.1,643.83,1.026]
[1750185699545,1.03550952,644.09,643.83,1.026]
[1750185699749,1.03550952,644.08,643.83,1.026]
[1750185699950,1.03550952,644.07,643.83,1.026]
[1750185700145,1.03550952,644.06,643.83,1.026]
[1750185700446,1.03550952,644.05,643.83,1.026]
[1750185700744,0.27021571,644.21,643.83,1.026]
[1750185700745,1.03550952,644.04,643.83,1.026]
[1750185700950,1.03550952,644.03,643.83,1.026]
[1750185701150,1.03550952,644.02,643.83,1.026]
[1750185701346,1.03550952,644.01,643.83,1.026]
[1750185701548,1.03550952,644.0,643.83,1.026]
[1750185701748,1.16059898,644.13,643.83,1.026]
[1750185701749,1.03550952,643.99,643.83,1.026]
[1750185701945,1.03550952,643.98,643.83,1.026]
[1750185702250,1.03550952,643.97,643.83,1.026]
[1750185702448,1.03550952,643.96,643.83,1.026]
[1750185702647,1.03550952,643.95,643.83,1.026]
[1750185702851,1.03550952,643.94,643.83,1.026]
[1750185703049,1.03550952,643.93,643.83,1.026]
[1750185703254,1.03550952,643.92,643.83,1.026]
[1750185703448,1.03550952,643.91,643.83,1.026]
[1750185703649,1.03550952,643.9,643.83,1.026]
[1750185703951,1.03550952,643.89,643.83,1.026]
[1750185704150,1.16059898,644.08,643.83,1.026]
[1750185704448,1.03584436,644.07,643.83,1.026]
[1750185704648,1.03584436,644.06,643.83,1.026]
[1750185704850,1.03584436,644.05,643.83,1.026]
[1750185705049,1.03584436,644.04,643.83,1.026]
[1750185705350,1.03584436,644.03,643.83,1.026]
[1750185705551,1.03584436,644.02,643.83,1.026]
[1750185705753,1.03584436,644.01,643.83,1.026]
[1750185705950,1.03584436,644.0,643.83,1.026]
[1750185706152,1.03584436,643.99,643.83,1.026]
[1750185706352,1.03584436,643.98,643.83,1.026]
[1750185706553,1.03584436,643.97,643.83,1.026]
[1750185706754,1.03584436,643.96,643.83,1.026]
[1750185706950,1.03584436,643.95,643.83,1.026]
[1750185707151,1.03584436,643.94,643.83,1.026]
[1750185707454,1.03584436,643.93,643.83,1.026]
[1750185707651,1.03584436,643.92,643.83,1.026]
[1750185707951,1.03584436,643.91,643.83,1.026]
[1750185708155,1.03584436,643.9,643.83,1.026]
[1750185708354,1.03584436,643.89,643.83,1.026]
[1750185708654,1.03584436,643.88,643.83,1.026]
[1750185708854,1.16059898,644.07,643.83,1.026]
[1750185709051,1.03598745,644.06,643.82,1.38]
[1750185709349,1.03598745,644.05,643.82,1.38]
[1750185709556,1.03598745,644.04,643.82,1.38]
[1750185709851,1.03598745,644.03,643.82,1.38]
[1750185710051,1.03598745,644.02,643.82,1.38]
[1750185710255,1.03598745,644.01,643.82,1.38]
[1750185710451,1.03598745,644.0,643.82,1.38]
[1750185710756,1.03598745,643.99,643.82,1.38]
[1750185710957,1.03598745,643.98,643.82,1.38]
[1750185711151,1.03598745,643.97,643.82,1.38]
[1750185711355,1.16059898,644.07,643.82,1.38]
[1750185711356,1.03598745,643.96,643.82,1.38]
[1750185711655,1.036067,643.95,643.83,1.548]
[1750185711952,1.036067,643.94,643.83,1.548]
[1750185712155,1.036067,643.93,643.83,1.548]
[1750185712455,1.036067,643.92,643.83,1.548]
[1750185712655,1.036067,643.91,643.83,1.548]
[1750185712853,1.036067,643.9,643.83,1.548]
[1750185713050,1.036067,643.89,643.83,1.548]
[1750185713254,1.036067,643.88,643.83,1.548]
[1750185713455,1.16172198,644.07,643.83,1.548]
[1750185713652,1.03616733,644.06,643.83,1.548]
[1750185713851,1.03616733,644.05,643.83,1.548]
[1750185714055,1.03616733,644.04,643.83,1.548]
[1750185714253,1.03616733,644.03,643.83,1.548]
[1750185714457,1.03616733,644.02,643.83,1.548]
[1750185714752,1.03616733,644.01,643.83,1.548]
[1750185714953,1.03616733,644.0,643.83,1.548]
[1750185715157,1.03616733,643.99,643.83,1.548]
[1750185715358,1.03616733,643.98,643.83,1.548]
[1750185715558,1.03616733,643.97,643.83,1.548]
[1750185715859,1.03616733,643.96,643.83,1.548]
[1750185716055,1.03616733,643.95,643.83,1.548]
[1750185716255,1.03616733,643.94,643.83,1.548]
[1750185716456,1.03616733,643.93,643.83,1.548]
[1750185716659,1.03616733,643.92,643.83,1.548]
[1750185716858,1.03616733,643.91,643.83,1.548]
[1750185717159,0.27021571,644.21,643.83,1.548]
[1750185717160,1.03616733,643.9,643.83,1.548]
[1750185717353,1.03616733,643.89,643.83,1.548]
[1750185717553,1.03616733,643.88,643.83,1.548]
[1750185717753,1.03616733,643.87,643.83,1.548]
[1750185718053,1.16172198,644.06,643.83,1.548]
[1750185718258,1.03640997,644.05,643.83,1.548]
[1750185718555,1.03640997,644.04,643.83,1.548]
[1750185718754,1.03640997,644.03,643.83,1.548]
[1750185718960,1.03640997,644.02,643.83,1.548]
[1750185719156,1.03640997,644.01,643.83,1.548]
[1750185719364,1.03640997,644.0,643.83,1.548]
[1750185719565,1.03640997,643.99,643.83,1.548]
[1750185719767,1.03640997,643.98,643.83,1.548]
[1750185720064,1.03640997,643.97,643.83,1.548]
[1750185720264,1.03640997,643.96,643.83,1.548]
[1750185720468,1.03640997,643.95,643.83,1.548]
[1750185720668,1.03640997,643.94,643.83,1.548]
[1750185720866,1.03640997,643.93,643.83,1.548]
[1750185721169,1.03640997,643.92,643.83,1.548]
[1750185721370,1.03640997,643.91,643.83,1.548]
[1750185721570,1.03640997,643.9,643.83,1.548]
[1750185721767,1.03640997,643.89,643.83,1.548]
[1750185722068,1.03640997,643.88,643.83,1.548]
[1750185722269,1.16172198,644.09,643.83,1.548]
[1750185722471,1.03806019,644.08,643.83,1.548]
[1750185722669,1.03806019,644.07,643.83,1.548]
[1750185722865,1.03806019,644.06,643.83,1.548]
[1750185723066,1.03806019,644.05,643.83,1.548]
[1750185723269,1.03806019,644.04,643.83,1.548]
[1750185723566,1.03806019,644.03,643.83,1.548]
[1750185723766,1.03806019,644.02,643.83,1.548]
[1750185723971,1.03806019,644.01,643.83,1.548]
[1750185724169,1.03806019,644.0,643.83,1.548]
[1750185724366,1.03806019,643.99,643.83,1.548]
[1750185724566,1.03806019,643.98,643.83,1.548]
[1750185724868,1.03806019,643.97,643.83,1.548]
[1750185725069,1.03806019,643.96,643.83,1.548]
[1750185725269,1.03806019,643.95,643.83,1.548]
[1750185725565,1.03806019,643.94,643.83,1.548]
[1750185725770,1.03806019,643.93,643.83,1.548]
[1750185725969,1.03806019,643.92,643.83,1.548]
[1750185726168,1.03806019,643.91,643.83,1.548]
[1750185726366,1.03806019,643.9,643.83,1.548]
[1750185726665,1.03806019,643.89,643.83,1.548]
[1750185726965,1.16172198,644.1,643.83,1.548]
[1750185727171,1.03804741,644.09,643.83,1.548]
[1750185727369,1.03804741,644.08,643.83,1.548]
[1750185727671,1.03804741,644.07,643.83,1.548]
[1750185727871,1.03804741,644.06,643.83,1.548]
[1750185728068,1.03804741,644.05,643.83,1.548]
[1750185728368,1.03804741,644.04,643.83,1.548]
[1750185728570,1.03804741,644.03,643.83,1.548]
[1750185728768,1.03804741,644.02,643.84,1.486]
[1750185728967,1.03804741,644.01,643.84,1.486]
[1750185729172,1.03804741,644.0,643.84,1.486]
[1750185729474,1.03804741,643.99,643.84,1.486]
[1750185729668,1.03804741,643.98,643.84,1.486]
[1750185729968,1.03804741,643.97,643.84,1.486]
[1750185730174,1.03804741,643.96,643.84,1.486]
[1750185730370,1.03804741,643.95,643.84,1.486]
[1750185730571,1.03804741,643.94,643.84,1.486]
[1750185730873,1.03804741,643.93,643.84,1.486]
[1750185731171,1.03804741,643.92,643.84,1.486]
[1750185731370,1.03804741,643.91,643.84,1.486]
[1750185731571,1.03804741,643.9,643.84,1.486]
[1750185731770,1.03804741,643.89,643.84,1.486]
[1750185732070,1.03813141,643.88,643.84,1.486]
[1750185732270,1.16172198,644.09,643.84,1.486]
[1750185732474,1.03814379,644.08,643.84,1.486]
[1750185732674,1.03814379,644.07,643.84,1.486]
[1750185732872,1.03814379,644.06,643.84,1.486]
[1750185733072,1.03814379,644.05,643.84,1.486]
[1750185733274,1.03814379,644.04,643.84,1.486]
[1750185733473,1.03814379,644.03,643.84,1.486]
[1750185733673,1.03814379,644.02,643.84,1.486]
[1750185733874,1.03814379,644.01,643.84,1.486]
[1750185734074,1.03814379,644.0,643.84,1.486]
[1750185734377,1.03814379,643.99,643.84,1.486]
[1750185734676,1.03814379,643.98,643.84,1.486]
[1750185734872,1.03814379,643.97,643.84,1.486]
[1750185735073,1.03814379,643.96,643.84,1.486]
[1750185735276,1.03814379,643.95,643.84,1.486]
[1750185735478,1.03814379,643.94,643.84,1.486]
[1750185735679,1.03814379,643.93,643.84,1.486]
[1750185735978,1.03814379,643.92,643.84,1.486]
[1750185736177,1.03814379,643.91,643.84,1.486]
[1750185736381,1.03814379,643.9,643.84,1.486]
[1750185736676,1.16172198,644.12,643.84,1.486]
[1750185736881,1.03815252,644.11,643.84,1.486]
[1750185737083,1.03815252,644.1,643.84,1.486]
[1750185737376,1.16172198,644.18,643.84,1.486]
[1750185737377,1.03815252,644.09,643.84,1.486]
[1750185737581,1.03815252,644.08,643.84,1.486]
[1750185737780,1.03815252,644.07,643.84,1.486]
[1750185737979,1.03815252,644.06,643.84,1.486]
[1750185738281,1.03815252,644.05,643.84,1.486]
[1750185738584,1.03815252,644.04,643.84,1.486]
[1750185738882,1.03815252,644.03,643.84,1.486]
[1750185739082,1.03815252,644.02,643.84,1.486]
[1750185739282,1.03815252,644.01,643.84,1.486]
[1750185739582,1.03815252,644.0,643.84,1.486]
[1750185739776,1.03815252,643.99,643.84,1.486]
[1750185739981,1.03815252,643.98,643.84,1.486]
[1750185740181,1.03815252,643.97,643.84,1.486]
[1750185740381,1.03815252,643.96,643.84,1.486]
[1750185740578,1.03815252,643.95,643.84,1.486]
[1750185740881,3.86475822,644.9,643.84,1.486]
[1750185740882,1.03815252,643.94,643.84,1.486]
[1750185741180,1.03815252,643.93,643.84,1.486]
[1750185741379,1.03805107,643.92,643.84,1.486]
[1750185741581,1.03805107,643.91,643.84,1.486]
[1750185741881,1.03808486,643.9,643.84,1.486]
[1750185742082,1.16172198,644.1,643.84,1.486]
[1750185742281,2.19983063,644.09,643.84,1.486]
[1750185742478,1.16172198,644.07,643.84,1.486]
[1750185742677,1.03810865,644.06,643.84,1.486]
[1750185742876,1.03810865,644.05,643.84,1.486]
[1750185743081,1.03810865,644.04,643.84,1.486]
[1750185743281,1.03810865,644.03,643.84,1.486]
[1750185743481,1.03810865,644.02,643.84,1.486]
[1750185743677,1.03810865,644.01,643.84,1.486]
[1750185743984,1.03810865,644.0,643.84,1.486]
[1750185744177,1.03810865,643.99,643.84,1.486]
[1750185744384,1.03810865,643.98,643.84,1.486]
[1750185744581,1.03810865,643.97,643.84,1.486]
[1750185744879,1.03810865,643.96,643.84,1.486]
[1750185745084,1.03810865,643.95,643.84,1.486]
[1750185745281,1.03810865,643.94,643.84,1.486]
[1750185745484,1.03810865,643.93,643.84,1.486]
[1750185745684,1.03810865,643.92,643.84,1.486]
[1750185745885,1.03810865,643.91,643.84,1.486]
[1750185746084,1.03810865,643.9,643.84,1.486]
[1750185746385,1.03810865,643.89,643.84,1.486]
[1750185746584,1.03810865,643.88,643.84,1.486]
[1750185746781,1.03810865,643.87,643.84,1.486]
[1750185746985,1.16172198,644.09,643.84,1.486]
[1750185747186,1.03818921,644.08,643.84,1.486]
[1750185747485,1.03818921,644.07,643.84,1.486]
[1750185747687,1.03818921,644.06,643.84,1.486]
[1750185747882,1.03818921,644.05,643.84,1.486]
[1750185748082,1.03818921,644.04,643.84,1.486]
[1750185748287,1.03818921,644.03,643.84,1.486]
[1750185748587,1.03818921,644.02,643.84,1.486]
[1750185748882,1.03818921,644.01,643.84,1.486]
[1750185749082,1.03818921,644.0,643.84,1.486]
[1750185749282,1.03818921,643.99,643.84,1.486]
[1750185749583,1.03818921,643.98,643.84,1.486]
[1750185749780,1.03818921,643.97,643.83,1.548]
[1750185749992,1.03818921,643.96,643.83,1.548]
[1750185750286,1.03818921,643.95,643.83,1.548]
[1750185750486,1.03818921,643.94,643.83,1.548]
[1750185750685,1.03818921,643.93,643.83,1.548]
[1750185750884,1.03818921,643.92,643.83,1.548]
[1750185751088,1.03818921,643.91,643.83,1.548]
[1750185751286,1.03818921,643.9,643.83,1.548]
[1750185751484,1.16172198,644.1,643.83,1.548]
[1750185751685,1.04122366,644.09,643.83,1.548]
[1750185751888,1.04122366,644.08,643.83,1.548]
[1750185752088,1.04122366,644.07,643.83,1.548]
[1750185752289,1.04122366,644.06,643.83,1.548]
[1750185752491,1.04122366,644.05,643.83,1.548]
[1750185752690,1.04122366,644.04,643.83,1.548]
[1750185752887,1.04122366,644.03,643.83,1.548]
[1750185753191,1.04122366,644.02,643.83,1.548]
[1750185753389,1.04122366,644.01,643.83,1.548]
[1750185753590,1.04122366,644.0,643.84,1.117]
[1750185753787,1.04122366,643.99,643.84,1.117]
[1750185753990,1.04122366,643.98,643.84,1.117]
[1750185754190,1.04122366,643.97,643.84,1.117]
[1750185754387,1.04122366,643.96,643.84,1.117]
[1750185754588,1.04122366,643.95,643.84,1.117]
[1750185754788,1.04122366,643.94,643.84,1.117]
[1750185754988,1.04122366,643.93,643.84,1.117]
[1750185755191,1.04122366,643.92,643.84,1.117]
[1750185755392,1.04122366,643.91,643.84,1.117]
[1750185755592,1.16172198,644.11,643.84,1.117]
[1750185755893,3.86475822,644.77,643.84,1.117]
[1750185755894,2.20304201,644.1,643.84,1.117]
[1750185756188,1.04132003,644.09,643.84,1.117]
[1750185756393,1.04132003,644.08,643.84,1.117]
[1750185756695,1.04132003,644.07,643.84,1.117]
[1750185756889,1.04132003,644.06,643.84,1.117]
[1750185757090,1.04132003,644.05,643.84,1.117]
[1750185757290,1.04132003,644.04,643.84,1.117]
[1750185757589,1.04132003,644.03,643.84,1.117]
[1750185757788,1.04132003,644.02,643.84,1.117]
[1750185757990,1.04132003,644.01,643.84,1.117]
[1750185758194,1.04132003,644.0,643.84,1.117]
[1750185758494,1.04132003,643.99,643.84,1.117]
[1750185758693,1.04132003,643.98,643.84,1.117]
[1750185758891,1.04132003,643.97,643.84,1.117]
[1750185759088,1.04132003,643.96,643.84,1.117]
[1750185759289,1.04132003,643.95,643.84,1.117]
[1750185759489,1.04132003,643.94,643.84,1.117]
[1750185759691,1.04132003,643.93,643.84,1.117]
[1750185759890,1.04132003,643.92,643.84,1.117]
[1750185760192,1.04132003,643.91,643.84,1.117]
[1750185760393,1.04132003,643.9,643.84,1.117]
[1750185760691,1.16172198,644.08,643.84,1.117]
[1750185760993,1.04148679,644.07,643.84,1.117]
[1750185761189,1.04148679,644.06,643.84,1.117]
[1750185761392,1.04148679,644.05,643.84,1.117]
[1750185761690,1.04148679,644.04,643.84,1.117]
[1750185761889,1.04148679,644.03,643.84,1.117]
[1750185762092,1.04148679,644.02,643.84,1.117]
[1750185762293,1.04148679,644.01,643.84,1.117]
[1750185762493,1.04148679,644.0,643.84,1.117]
[1750185762688,1.04148679,643.99,643.84,1.117]
[1750185762891,1.04148679,643.98,643.84,1.117]
[1750185763087,1.04148679,643.97,643.84,1.117]
[1750185763292,1.04148679,643.96,643.84,1.117]
[1750185763489,1.04148679,643.95,643.84,1.117]
[1750185763689,1.04148679,643.94,643.84,1.117]
[1750185763892,1.04148679,643.93,643.84,1.117]
[1750185764092,1.04148679,643.92,643.84,1.117]
[1750185764291,1.04148679,643.91,643.84,1.117]
[1750185764495,1.04148679,643.9,643.84,1.117]
[1750185764793,1.04148679,643.89,643.84,1.117]
[1750185764987,1.16172198,644.08,643.84,1.117]
[1750185765190,1.04153045,644.07,643.84,1.117]
[1750185765392,1.04153045,644.06,643.84,1.117]
[1750185765592,1.04153045,644.05,643.84,1.117]
[1750185765793,1.04153045,644.04,643.84,1.117]
[1750185765993,1.04153045,644.03,643.84,1.117]
[1750185766194,1.04153045,644.02,643.84,1.117]
[1750185766493,1.04153045,644.01,643.84,1.117]
[1750185766690,1.04153045,644.0,643.84,1.117]
[1750185766990,1.04153045,643.99,643.84,1.117]
[1750185767195,1.04153045,643.98,643.84,1.117]
[1750185767496,1.04153045,643.97,643.84,1.117]
[1750185767791,1.04153045,643.96,643.84,1.117]
[1750185768091,1.04153045,643.95,643.84,1.117]
[1750185768291,1.04153045,643.94,643.84,1.117]
[1750185768491,1.04153045,643.93,643.84,1.117]
[1750185768695,1.04153045,643.92,643.84,1.117]
[1750185768899,1.04153045,643.91,643.84,1.117]
[1750185769196,1.04153045,643.9,643.84,1.117]
[1750185769394,1.04153045,643.89,643.84,1.117]
[1750185769594,1.16172198,644.07,643.84,1.117]
[1750185769796,1.04161389,644.06,643.84,1.117]
[1750185769998,1.04161389,644.05,643.84,1.117]
[1750185770196,1.04161389,644.04,643.84,1.117]
[1750185770398,1.04161389,644.03,643.84,1.117]
[1750185770598,1.04161389,644.02,643.84,1.117]
[1750185770799,1.04161389,644.01,643.84,1.117]
[1750185770997,1.04161389,644.0,643.84,1.117]
[1750185771197,1.04161389,643.99,643.84,1.117]
[1750185771500,1.04161389,643.98,643.84,1.117]
[1750185771700,1.04161389,643.97,643.84,1.117]
[1750185771900,1.04161389,643.96,643.84,1.117]
[1750185772100,1.04161389,643.95,643.84,1.117]
[1750185772298,1.04161389,643.94,643.84,1.117]
[1750185772496,1.04161389,643.93,643.84,1.117]
[1750185772701,1.04161389,643.92,643.84,1.117]
[1750185772895,1.54746163,644.18,643.84,1.117]
[1750185772896,1.04161389,643.91,643.84,1.117]
[1750185773099,1.04161389,643.9,643.84,1.117]
[1750185773297,1.04161389,643.89,643.84,1.117]
[1750185773601,1.16172198,644.08,643.84,1.117]
[1750185773902,1.04169494,644.07,643.84,1.117]
[1750185774100,1.04169494,644.06,643.84,1.117]
[1750185774400,1.04169494,644.05,643.84,1.117]
[1750185774596,1.04169494,644.04,643.84,1.117]
[1750185774802,1.04169494,644.03,643.84,1.117]
[1750185775004,1.04169494,644.02,643.84,1.117]
[1750185775204,1.04169494,644.01,643.84,1.117]
[1750185775404,1.04169494,644.0,643.84,1.117]
[1750185775601,1.04169494,643.99,643.84,1.117]
[1750185775905,1.04169494,643.98,643.84,1.117]
[1750185776100,1.04169494,643.97,643.84,1.117]
[1750185776301,1.04169494,643.96,643.84,1.117]
[1750185776503,1.04169494,643.95,643.84,1.117]
[1750185776704,1.04169494,643.94,643.84,1.117]
[1750185776899,1.04169494,643.93,643.84,1.117]
[1750185777101,1.04169494,643.92,643.84,1.117]
[1750185777303,1.04169494,643.91,643.84,1.117]
[1750185777504,1.04169494,643.9,643.84,1.117]
[1750185777706,1.04169494,643.89,643.84,1.117]
[1750185777905,1.04169494,643.88,643.84,1.117]
[1750185778104,1.16172198,644.07,643.84,1.117]
[1750185778309,1.04184255,644.06,643.84,1.117]
[1750185778503,1.04184255,644.05,643.84,1.117]
[1750185778703,1.04184255,644.04,643.84,1.117]
[1750185778908,1.04184255,644.03,643.84,1.117]
[1750185779207,1.04184255,644.02,643.84,1.117]
[1750185779405,1.04184255,644.01,643.84,1.117]
[1750185779707,1.04184255,644.0,643.84,1.117]
[1750185779910,1.04184255,643.99,643.84,1.117]
[1750185780208,1.04184255,643.98,643.84,1.117]
[1750185780409,1.04184255,643.97,643.84,1.117]
[1750185780607,1.04184255,643.96,643.84,1.117]
[1750185780806,1.04184255,643.95,643.84,1.117]
[1750185781006,1.16172198,644.16,643.84,1.117]
[1750185781209,1.03773531,644.15,643.84,1.117]
[1750185781410,1.03773531,644.14,643.84,1.117]
[1750185781613,1.03773531,644.13,643.85,1.446]
[1750185781810,1.16172198,644.17,643.85,1.446]
[1750185781811,1.03773531,644.12,643.85,1.446]
[1750185782008,1.03773531,644.11,643.85,1.446]
[1750185782208,1.03773531,644.1,643.85,1.446]
[1750185782407,1.03773531,644.09,643.85,1.446]
[1750185782611,1.03773531,644.08,643.85,1.446]
[1750185782810,1.03773531,644.07,643.85,1.446]
[1750185783012,1.03773531,644.06,643.85,1.446]
[1750185783213,1.03773531,644.05,643.85,1.446]
[1750185783414,1.03773531,644.04,643.85,1.446]
[1750185783617,1.03773531,644.03,643.85,1.446]
[1750185783912,1.03773531,644.02,643.85,1.446]
[1750185784115,1.03773531,644.01,643.85,1.446]
[1750185784315,1.03773531,644.0,643.85,1.446]
[1750185784515,1.03773531,643.99,643.85,1.446]
[1750185784715,1.03773531,643.98,643.85,1.446]
[1750185784915,1.03773531,643.97,643.85,1.446]
[1750185785116,1.03773531,643.96,643.85,1.446]
[1750185785315,1.03773531,643.95,643.85,1.446]
[1750185785612,1.16172198,644.18,643.85,1.446]
[1750185785812,1.03738297,644.17,643.85,1.446]
[1750185786013,1.03738297,644.16,643.85,1.446]
[1750185786213,1.03738297,644.15,643.85,1.446]
[1750185786516,1.16172198,644.18,643.85,1.446]
[1750185786517,1.03738297,644.14,643.85,1.446]
[1750185786710,1.03738297,644.13,643.85,1.446]
[1750185786913,1.03738297,644.12,643.85,1.446]
[1750185787211,1.03738297,644.11,643.85,1.446]
[1750185787415,1.03738297,644.1,643.85,1.446]
[1750185787616,1.03738297,644.09,643.85,1.446]
[1750185787915,1.03738297,644.08,643.85,1.446]
[1750185788114,1.03738297,644.07,643.85,1.446]
[1750185788314,1.03738297,644.06,643.85,1.446]
[1750185788619,1.03738297,644.05,643.85,1.446]
[1750185788914,1.03738297,644.04,643.85,1.446]
[1750185789218,1.03738297,644.03,643.85,1.446]
[1750185789417,1.03738297,644.02,643.85,1.446]
[1750185789716,1.03738297,644.01,643.85,1.446]
[1750185789914,1.03738297,644.0,643.85,1.446]
[1750185790114,1.03738297,643.99,643.85,1.446]
[1750185790419,1.16172198,644.24,643.85,1.446]
[1750185790617,1.03701249,644.23,643.85,1.446]
[1750185790819,1.03701249,644.22,643.85,1.446]
[1750185791020,1.03701249,644.21,643.85,1.446]
[1750185791321,1.03701249,644.2,643.85,1.446]
[1750185791521,1.03701249,644.19,643.85,1.446]
[1750185791717,1.03701249,644.18,643.85,1.446]
[1750185792021,1.03701249,644.17,643.85,1.446]
[1750185792216,1.03701249,644.16,643.85,1.446]
[1750185792418,1.16172198,644.3,643.85,1.446]
[1750185792419,1.03701249,644.15,643.85,1.446]
[1750185792616,1.03701249,644.14,643.85,1.446]
[1750185792921,1.03701249,644.13,643.85,1.446]
[1750185793218,1.03701249,644.12,643.85,1.446]
[1750185793517,1.03701249,644.11,643.85,1.446]
[1750185793720,1.03701249,644.1,643.85,1.446]
[1750185793922,1.16172198,644.36,643.85,1.446]
[1750185794221,1.03634781,644.35,643.85,1.446]
[1750185794418,1.03634781,644.34,643.85,1.446]
[1750185794618,1.03634781,644.33,643.85,1.446]
[1750185794817,1.03634781,644.32,643.85,1.446]
[1750185795021,1.03634781,644.31,643.85,1.446]
[1750185795217,1.03634781,644.3,643.85,1.446]
[1750185795419,1.03634781,644.29,643.85,1.446]
[1750185795619,1.03634781,644.28,643.85,1.446]
[1750185795822,1.03634781,644.27,643.85,1.446]
[1750185796021,1.03634781,644.26,643.85,1.446]
[1750185796319,1.03634781,644.25,643.85,1.446]
[1750185796518,1.03634781,644.24,643.85,1.446]
[1750185796718,1.03634781,644.23,643.85,1.446]
[1750185797021,1.03634781,644.22,643.85,1.446]
[1750185797218,1.16172198,644.43,643.85,1.446]
[1750185797423,1.03480274,644.42,643.85,1.446]
[1750185797620,1.03480274,644.41,643.85,1.446]
[1750185797920,1.03480274,644.4,643.85,1.446]
[1750185798120,1.03480274,644.39,643.85,1.446]
[1750185798319,1.03480274,644.38,643.85,1.446]
[1750185798520,1.03480274,644.37,643.85,1.446]
[1750185798719,1.03480274,644.36,643.85,1.446]
[1750185798923,1.03480274,644.35,643.85,1.446]
[1750185799122,1.03480274,644.34,643.85,1.446]
[1750185799325,1.03480274,644.33,643.85,1.446]
[1750185799523,1.03480274,644.32,643.85,1.446]
[1750185799724,1.03480274,644.31,643.85,1.446]
[1750185799920,1.03480274,644.3,643.85,1.446]
[1750185800122,1.03480274,644.29,643.85,1.446]
[1750185800320,1.03379527,644.28,643.85,1.446]
[1750185800522,1.03379527,644.27,643.85,1.446]
[1750185800822,1.16172198,644.54,643.85,1.446]
[1750185801024,1.03379456,644.53,643.85,1.446]
[1750185801221,1.03379456,644.52,643.85,1.446]
[1750185801434,1.03379456,644.51,643.85,1.446]
[1750185801627,1.03379456,644.5,643.85,1.446]
[1750185801822,1.03379456,644.49,643.85,1.446]
[1750185802029,1.03379456,644.48,643.85,1.446]
[1750185802226,1.03379456,644.47,643.85,1.446]
[1750185802425,1.03379456,644.46,643.85,1.446]
[1750185802629,1.03379456,644.45,643.85,1.446]
[1750185802928,1.03379456,644.44,643.85,1.446]
[1750185803129,1.03379456,644.43,643.85,1.446]
[1750185803328,1.03379456,644.42,643.85,1.446]
[1750185803530,1.03379456,644.41,643.85,1.446]
[1750185803829,1.03379456,644.4,643.85,1.446]
[1750185804026,1.03379456,644.39,643.85,1.446]
[1750185804231,1.03379456,644.38,643.85,1.446]
[1750185804432,1.03379456,644.37,643.85,1.446]
[1750185804732,1.03379456,644.36,643.85,1.446]
[1750185804931,1.03379456,644.35,643.85,1.446]
[1750185805232,1.03379456,644.34,643.85,1.446]
[1750185805433,1.03379456,644.33,643.85,1.446]
[1750185805627,1.03379456,644.32,643.85,1.446]
[1750185805831,1.03379456,644.31,643.85,1.446]
[1750185806131,1.03379456,644.3,643.85,1.446]
[1750185806330,1.03379456,644.29,643.85,1.446]
[1750185806632,1.16172198,644.56,643.85,1.446]